[Event "Live Chess"]
[Site "Chess.com"]
[Date "2023.05.21"]
[Round "-"]
[White "LL220284LL"]
[Black "diana21strabt"]
[Result "1-0"]
[WhiteElo "2234"]
[BlackElo "1734"]
[TimeControl "300"]
[EndTime "8:10:38 PDT"]
[Termination "LL220284LL won by resignation"]

1. g3 {[%clk 0:04:58.8]} 1... Nf6 {[%clk 0:04:57]} 2. Bg2 {[%clk 0:04:58.7]}
2... g6 {[%clk 0:04:55.6]} 3. Nf3 {[%clk 0:04:58.3]} 3... Bg7 {[%clk 0:04:54.7]}
4. O-O {[%clk 0:04:58.2]} 4... e6 {[%clk 0:04:53.8]} 5. c4 {[%clk 0:04:57.8]}
5... d6 {[%clk 0:04:52.8]} 6. Re1 {[%clk 0:04:57.3]} 6... O-O {[%clk 0:04:51.4]}
7. Nc3 {[%clk 0:04:56.9]} 7... Nc6 {[%clk 0:04:49.1]} 8. d3 {[%clk 0:04:56.3]}
8... Re8 {[%clk 0:04:45.1]} 9. Rb1 {[%clk 0:04:55.7]} 9... a5 {[%clk 0:04:42.6]}
10. a3 {[%clk 0:04:54.5]} 10... b6 {[%clk 0:04:38.5]} 11. b4 {[%clk 0:04:53.3]}
11... axb4 {[%clk 0:04:36.9]} 12. axb4 {[%clk 0:04:53.2]} 12... Rb8 {[%clk
0:04:30.3]} 13. Nd2 {[%clk 0:04:49.9]} 13... Ne5 {[%clk 0:04:25.4]} 14. d4
{[%clk 0:04:45.7]} 14... Ned7 {[%clk 0:04:21.6]} 15. e4 {[%clk 0:04:42.1]} 15...
e5 {[%clk 0:04:19.2]} 16. d5 {[%clk 0:04:39.2]} 16... h5 {[%clk 0:04:11.5]} 17.
Nf1 {[%clk 0:04:36.9]} 17... Nh7 {[%clk 0:04:09.1]} 18. h3 {[%clk 0:04:28.5]}
18... Ba6 {[%clk 0:04:06.7]} 19. b5 {[%clk 0:04:24.9]} 19... Bc8 {[%clk
0:04:04.4]} 20. Be3 {[%clk 0:04:24.4]} 20... Nc5 {[%clk 0:04:01.4]} 21. Na2
{[%clk 0:04:18.7]} 21... Ra8 {[%clk 0:03:53.8]} 22. Nb4 {[%clk 0:04:17.3]} 22...
Bd7 {[%clk 0:03:48.9]} 23. Nh2 {[%clk 0:04:11.6]} 23... Qc8 {[%clk 0:03:42.9]}
24. h4 {[%clk 0:04:09.7]} 24... Nf6 {[%clk 0:03:37.2]} 25. Qc2 {[%clk
0:04:00.4]} 25... Ng4 {[%clk 0:03:31.6]} 26. Nxg4 {[%clk 0:03:59.1]} 26... hxg4
{[%clk 0:03:29.7]} 27. Ra1 {[%clk 0:03:56]} 27... Qb7 {[%clk 0:03:26.4]} 28. Qe2
{[%clk 0:03:48.7]} 28... Rxa1 {[%clk 0:03:19.2]} 29. Rxa1 {[%clk 0:03:46.3]}
29... Ra8 {[%clk 0:03:17.4]} 30. Rf1 {[%clk 0:03:43.3]} 30... Ra4 {[%clk
0:03:07.5]} 31. Nc6 {[%clk 0:03:41.5]} 31... Bxc6 {[%clk 0:02:59.5]} 32. bxc6
{[%clk 0:03:39.8]} 32... Qa6 {[%clk 0:02:56.6]} 33. Qxg4 {[%clk 0:03:38.3]}
33... Rxc4 {[%clk 0:02:52.6]} 34. h5 {[%clk 0:03:36.7]} 34... f5 {[%clk
0:02:28.7]} 35. Qxg6 {[%clk 0:03:35.1]} 35... f4 {[%clk 0:02:24.8]} 36. h6
{[%clk 0:03:34]} 36... Ne6 {[%clk 0:02:20.1]} 37. dxe6 {[%clk 0:03:32.6]} 1-0

[Event "Live Chess"]
[Site "Chess.com"]
[Date "2023.05.21"]
[Round "-"]
[White "Olisingapore"]
[Black "BJAW87"]
[Result "1-0"]
[WhiteElo "1803"]
[BlackElo "1443"]
[TimeControl "300"]
[EndTime "8:10:50 PDT"]
[Termination "Olisingapore won by resignation"]

1. d4 {[%clk 0:04:52.6]} 1... Nf6 {[%clk 0:04:59.3]} 2. c4 {[%clk 0:04:52.1]}
2... g6 {[%clk 0:04:58.9]} 3. g3 {[%clk 0:04:51.1]} 3... Bg7 {[%clk 0:04:58.6]}
4. Bg2 {[%clk 0:04:50.7]} 4... O-O {[%clk 0:04:57.9]} 5. Nc3 {[%clk 0:04:49.8]}
5... c6 {[%clk 0:04:57.4]} 6. Nf3 {[%clk 0:04:49.4]} 6... d5 {[%clk 0:04:56.1]}
7. O-O {[%clk 0:04:49]} 7... dxc4 {[%clk 0:04:55.3]} 8. Qc2 {[%clk 0:04:43.7]}
8... b5 {[%clk 0:04:49.6]} 9. e3 {[%clk 0:04:41.1]} 9... Bb7 {[%clk 0:04:45.6]}
10. Ne5 {[%clk 0:04:40.1]} 10... Qd6 {[%clk 0:04:40.3]} 11. b3 {[%clk 0:04:39]}
11... cxb3 {[%clk 0:04:35.8]} 12. axb3 {[%clk 0:04:38]} 12... Nbd7 {[%clk
0:04:25.6]} 13. Nxb5 {[%clk 0:04:34.2]} 13... Rac8 {[%clk 0:04:13.8]} 14. Nxd6
{[%clk 0:04:32.1]} 14... exd6 {[%clk 0:04:12.1]} 15. Nxd7 {[%clk 0:04:28.4]} 1-0

[Event "Live Chess"]
[Site "Chess.com"]
[Date "2023.05.21"]
[Round "-"]
[White "lateforthesky"]
[Black "AyannaTang"]
[Result "1-0"]
[WhiteElo "2084"]
[BlackElo "230"]
[TimeControl "300"]
[EndTime "8:10:54 PDT"]
[Termination "lateforthesky won by checkmate"]

1. e4 {[%clk 0:04:58.7]} 1... e5 {[%clk 0:04:56.9]} 2. f4 {[%clk 0:04:55.1]}
2... d6 {[%clk 0:04:49]} 3. Nf3 {[%clk 0:04:52.6]} 3... exf4 {[%clk 0:04:46.2]}
4. d4 {[%clk 0:04:50.7]} 4... d5 {[%clk 0:04:42.2]} 5. e5 {[%clk 0:04:44.4]}
5... Nc6 {[%clk 0:04:31.3]} 6. Bxf4 {[%clk 0:04:40.7]} 6... Bg4 {[%clk
0:04:23.1]} 7. c3 {[%clk 0:04:35.1]} 7... Bxf3 {[%clk 0:04:21.3]} 8. Qxf3 {[%clk
0:04:33.3]} 8... Qe7 {[%clk 0:04:08.4]} 9. Nd2 {[%clk 0:04:26.8]} 9... O-O-O
{[%clk 0:04:06]} 10. Bb5 {[%clk 0:04:23.4]} 10... Na5 {[%clk 0:04:02.2]} 11. b4
{[%clk 0:04:10.1]} 11... Nc4 {[%clk 0:03:55.4]} 12. Nxc4 {[%clk 0:04:07]} 12...
dxc4 {[%clk 0:03:54.1]} 13. Bxc4 {[%clk 0:04:04.7]} 13... Qh4+ {[%clk
0:03:36.6]} 14. Bg3 {[%clk 0:04:00.1]} 14... Qe7 {[%clk 0:03:25.7]} 15. O-O
{[%clk 0:03:55.1]} 15... Qd7 {[%clk 0:03:22.3]} 16. Qxf7 {[%clk 0:03:44.3]}
16... Qxf7 {[%clk 0:03:16.9]} 17. Rxf7 {[%clk 0:03:41.4]} 17... Nh6 {[%clk
0:03:13.6]} 18. Rf3 {[%clk 0:03:31]} 18... Ng4 {[%clk 0:02:55]} 19. h3 {[%clk
0:03:26.4]} 19... Nf6 {[%clk 0:02:27]} 20. exf6 {[%clk 0:03:22.8]} 20... gxf6
{[%clk 0:02:25.7]} 21. Re1 {[%clk 0:03:13.4]} 21... Bh6 {[%clk 0:02:17.1]} 22.
Re7 {[%clk 0:03:07.1]} 22... Be3+ {[%clk 0:02:14.2]} 23. Rfxe3 {[%clk
0:03:05.1]} 23... c6 {[%clk 0:02:07.5]} 24. Be6+ {[%clk 0:02:59.3]} 24... Rd7
{[%clk 0:01:54.1]} 25. Rxd7 {[%clk 0:02:56.7]} 25... Re8 {[%clk 0:01:42.2]} 26.
Rc7+ {[%clk 0:02:47.7]} 26... Kd8 {[%clk 0:01:39.7]} 27. Rxb7 {[%clk 0:02:37.2]}
27... a6 {[%clk 0:01:36.7]} 28. Rb8+ {[%clk 0:02:26]} 28... Ke7 {[%clk 0:01:34]}
29. Bf5+ {[%clk 0:02:16.8]} 29... Kf8 {[%clk 0:01:31.2]} 30. Rbxe8+ {[%clk
0:02:15.1]} 30... Kf7 {[%clk 0:01:29.8]} 31. R3e7# {[%clk 0:02:12.3]} 1-0

[Event "Live Chess"]
[Site "Chess.com"]
[Date "2023.05.21"]
[Round "-"]
[White "domrobson"]
[Black "HoarseyHorsey"]
[Result "1-0"]
[WhiteElo "1780"]
[BlackElo "1465"]
[TimeControl "300"]
[EndTime "8:11:02 PDT"]
[Termination "domrobson won by resignation"]

1. d4 {[%clk 0:04:58.5]} 1... Nf6 {[%clk 0:04:58]} 2. c4 {[%clk 0:04:57.8]} 2...
e6 {[%clk 0:04:57.1]} 3. Nf3 {[%clk 0:04:56.7]} 3... d5 {[%clk 0:04:56.7]} 4.
Nc3 {[%clk 0:04:56]} 4... Be7 {[%clk 0:04:56]} 5. Bg5 {[%clk 0:04:55.2]} 5...
O-O {[%clk 0:04:54.8]} 6. e3 {[%clk 0:04:54.8]} 6... c6 {[%clk 0:04:53.8]} 7.
Rc1 {[%clk 0:04:54]} 7... Nbd7 {[%clk 0:04:47.4]} 8. Bd3 {[%clk 0:04:52.1]} 8...
Re8 {[%clk 0:04:46.2]} 9. O-O {[%clk 0:04:50.8]} 9... Bd6 {[%clk 0:04:40]} 10.
e4 {[%clk 0:04:45.1]} 10... dxe4 {[%clk 0:04:38.7]} 11. Nxe4 {[%clk 0:04:43.7]}
11... Be7 {[%clk 0:04:37.3]} 12. Nxf6+ {[%clk 0:04:40.8]} 12... Bxf6 {[%clk
0:04:34]} 13. Bxf6 {[%clk 0:04:37.4]} 13... Nxf6 {[%clk 0:04:33.9]} 14. Ne5
{[%clk 0:04:36.2]} 14... Qc7 {[%clk 0:04:24.5]} 15. f4 {[%clk 0:04:33.5]} 15...
b6 {[%clk 0:04:15.2]} 16. Rf3 {[%clk 0:04:31.7]} 16... Bb7 {[%clk 0:04:10.8]}
17. Rh3 {[%clk 0:04:30]} 17... c5 {[%clk 0:04:03.7]} 18. Qc2 {[%clk 0:04:27.6]}
18... g6 {[%clk 0:03:59.1]} 19. dxc5 {[%clk 0:04:18.1]} 19... Qxc5+ {[%clk
0:03:57.8]} 20. Kh1 {[%clk 0:04:16.9]} 20... Rad8 {[%clk 0:03:53.8]} 21. Rg3
{[%clk 0:04:09.2]} 21... Rd4 {[%clk 0:03:38.5]} 22. Bxg6 {[%clk 0:04:05.1]}
22... hxg6 {[%clk 0:03:35.8]} 23. Rxg6+ {[%clk 0:03:58.1]} 23... Kf8 {[%clk
0:03:22.5]} 24. Rxf6 {[%clk 0:03:55.3]} 24... Qc7 {[%clk 0:03:14.5]} 25. Rxf7+
{[%clk 0:03:53.6]} 25... Qxf7 {[%clk 0:03:13]} 26. Nxf7 {[%clk 0:03:52.3]} 26...
Kxf7 {[%clk 0:03:12.9]} 27. Qh7+ {[%clk 0:03:50.5]} 27... Kf6 {[%clk 0:03:08]}
28. Qxb7 {[%clk 0:03:50.1]} 28... Red8 {[%clk 0:03:06.1]} 29. h3 {[%clk
0:03:45.5]} 29... Rd2 {[%clk 0:03:01.2]} 30. Qxa7 {[%clk 0:03:42.9]} 30... Rxb2
{[%clk 0:02:57.4]} 31. c5 {[%clk 0:03:39.9]} 31... bxc5 {[%clk 0:02:48.2]} 32.
Qxc5 {[%clk 0:03:38.4]} 32... Rdd2 {[%clk 0:02:47.8]} 33. Qg5+ {[%clk
0:03:34.7]} 33... Kf7 {[%clk 0:02:46.1]} 34. h4 {[%clk 0:03:33.9]} 34... Rxg2
{[%clk 0:02:35.2]} 35. Qxg2 {[%clk 0:03:31.9]} 35... Rxg2 {[%clk 0:02:34.8]} 36.
Kxg2 {[%clk 0:03:31.2]} 1-0

[Event "Live Chess"]
[Site "Chess.com"]
[Date "2023.05.21"]
[Round "-"]
[White "Conradical12"]
[Black "NotHarryV"]
[Result "0-1"]
[WhiteElo "1523"]
[BlackElo "1511"]
[TimeControl "300"]
[EndTime "8:11:20 PDT"]
[Termination "NotHarryV won by checkmate"]

1. e4 {[%clk 0:04:58.2]} 1... Nf6 {[%clk 0:04:59.1]} 2. Nc3 {[%clk 0:04:54.8]}
2... e5 {[%clk 0:04:48]} 3. Nf3 {[%clk 0:04:52.2]} 3... Nc6 {[%clk 0:04:38.2]}
4. Bc4 {[%clk 0:04:50]} 4... Bc5 {[%clk 0:04:22.7]} 5. O-O {[%clk 0:04:47.7]}
5... O-O {[%clk 0:04:20.3]} 6. d3 {[%clk 0:04:44.7]} 6... d6 {[%clk 0:04:19.2]}
7. Be3 {[%clk 0:04:43.1]} 7... Bxe3 {[%clk 0:04:16.1]} 8. fxe3 {[%clk
0:04:42.5]} 8... Ng4 {[%clk 0:04:09.2]} 9. Qe2 {[%clk 0:04:40.6]} 9... Be6
{[%clk 0:03:55.5]} 10. Bxe6 {[%clk 0:04:29.8]} 10... fxe6 {[%clk 0:03:55.4]} 11.
h3 {[%clk 0:04:27.3]} 11... Nf6 {[%clk 0:03:51.9]} 12. Ng5 {[%clk 0:04:24.8]}
12... Qe7 {[%clk 0:03:42.9]} 13. Nb5 {[%clk 0:04:21.2]} 13... Rac8 {[%clk
0:03:30.6]} 14. Rae1 {[%clk 0:04:10.5]} 14... d5 {[%clk 0:03:23]} 15. exd5
{[%clk 0:04:05.1]} 15... exd5 {[%clk 0:03:21.2]} 16. e4 {[%clk 0:04:01.5]} 16...
Qc5+ {[%clk 0:03:14.9]} 17. d4 {[%clk 0:03:56.7]} 17... Nxd4 {[%clk 0:03:11.4]}
18. Nxd4 {[%clk 0:03:54.2]} 18... Qxd4+ {[%clk 0:03:08]} 19. Kh1 {[%clk
0:03:53.8]} 19... Nxe4 {[%clk 0:02:44.7]} 20. Nxe4 {[%clk 0:03:51]} 20... Rxf1+
{[%clk 0:02:43.7]} 21. Rxf1 {[%clk 0:03:49.5]} 21... dxe4 {[%clk 0:02:40.2]} 22.
Qf2 {[%clk 0:03:49.2]} 22... Qxf2 {[%clk 0:02:35.5]} 23. Rxf2 {[%clk 0:03:46.8]}
23... g6 {[%clk 0:02:26.5]} 24. Re2 {[%clk 0:03:45.5]} 24... Kf7 {[%clk
0:02:25.6]} 25. Rxe4 {[%clk 0:03:44.7]} 25... Ke6 {[%clk 0:02:25.2]} 26. Kg1
{[%clk 0:03:42.8]} 26... Rf8 {[%clk 0:02:22.9]} 27. Ra4 {[%clk 0:03:40.3]} 27...
a6 {[%clk 0:02:20.3]} 28. Rb4 {[%clk 0:03:39.3]} 28... b5 {[%clk 0:02:12.7]} 29.
c4 {[%clk 0:03:36.1]} 29... c5 {[%clk 0:02:05.7]} 30. Rb3 {[%clk 0:03:32.8]}
30... b4 {[%clk 0:01:50.9]} 31. Rd3 {[%clk 0:03:29.2]} 31... e4 {[%clk
0:01:41.9]} 32. Rd5 {[%clk 0:03:27.8]} 32... e3 {[%clk 0:01:36]} 33. Rd1 {[%clk
0:03:25]} 33... e2 {[%clk 0:01:33.5]} 34. Re1 {[%clk 0:03:21.8]} 34... Rf1+
{[%clk 0:01:09.3]} 35. Rxf1 {[%clk 0:03:21]} 35... exf1=Q+ {[%clk 0:01:06.3]}
36. Kxf1 {[%clk 0:03:20.9]} 36... Ke5 {[%clk 0:01:05.6]} 37. Ke2 {[%clk
0:03:18.9]} 37... Kd4 {[%clk 0:01:05.3]} 38. b3 {[%clk 0:03:13]} 38... Kc3
{[%clk 0:01:04.7]} 39. Ke3 {[%clk 0:03:11.9]} 39... Kb2 {[%clk 0:01:04]} 40. Ke4
{[%clk 0:03:11.6]} 40... Kxa2 {[%clk 0:01:03.4]} 41. Kd5 {[%clk 0:03:11.2]}
41... Kxb3 {[%clk 0:01:02.8]} 42. Kxc5 {[%clk 0:03:10.8]} 42... a5 {[%clk
0:01:01.1]} 43. Kd5 {[%clk 0:03:09.4]} 43... a4 {[%clk 0:01:00.5]} 44. c5 {[%clk
0:03:09]} 44... a3 {[%clk 0:00:59.9]} 45. c6 {[%clk 0:03:08.8]} 45... a2 {[%clk
0:00:59.1]} 46. c7 {[%clk 0:03:08.5]} 46... a1=Q {[%clk 0:00:56.7]} 47. c8=Q
{[%clk 0:03:08]} 47... Qd1+ {[%clk 0:00:49.9]} 48. Kc6 {[%clk 0:03:06.1]} 48...
Qc1+ {[%clk 0:00:48.8]} 49. Kd7 {[%clk 0:03:04.9]} 49... Qxc8+ {[%clk
0:00:48.7]} 50. Kxc8 {[%clk 0:03:04.1]} 50... Kc2 {[%clk 0:00:47.8]} 51. Kd7
{[%clk 0:03:03.8]} 51... b3 {[%clk 0:00:47.4]} 52. Ke6 {[%clk 0:03:03.6]} 52...
b2 {[%clk 0:00:47.3]} 53. Kf7 {[%clk 0:03:03.3]} 53... b1=Q {[%clk 0:00:47.1]}
54. Kg7 {[%clk 0:03:03.2]} 54... Qb7+ {[%clk 0:00:44.4]} 55. Kh6 {[%clk
0:03:01.9]} 55... Kd3 {[%clk 0:00:40]} 56. g4 {[%clk 0:03:01.4]} 56... Ke3
{[%clk 0:00:39.2]} 57. h4 {[%clk 0:02:59.7]} 57... Qe7 {[%clk 0:00:26.8]} 58. g5
{[%clk 0:02:55.7]} 58... Qe4 {[%clk 0:00:16.3]} 59. h5 {[%clk 0:02:54]} 59...
gxh5 {[%clk 0:00:13.7]} 60. Kxh5 {[%clk 0:02:51.9]} 60... Qg6+ {[%clk 0:00:13]}
61. Kg4 {[%clk 0:02:50.4]} 61... Ke4 {[%clk 0:00:12.3]} 62. Kh4 {[%clk
0:02:49.4]} 62... Kf5 {[%clk 0:00:11.7]} 63. Kh3 {[%clk 0:02:48.3]} 63... Qxg5
{[%clk 0:00:11.6]} 64. Kh2 {[%clk 0:02:47.7]} 64... Kf4 {[%clk 0:00:11]} 65. Kh1
{[%clk 0:02:46.2]} 65... Kf3 {[%clk 0:00:10.7]} 66. Kh2 {[%clk 0:02:45.1]} 66...
Qg2# {[%clk 0:00:10.1]} 0-1

[Event "Live Chess"]
[Site "Chess.com"]
[Date "2023.05.21"]
[Round "-"]
[White "WilliamofOrange16th"]
[Black "WelshTiger"]
[Result "0-1"]
[WhiteElo "1851"]
[BlackElo "2335"]
[TimeControl "300"]
[EndTime "8:11:31 PDT"]
[Termination "WelshTiger won by resignation"]

1. e4 {[%clk 0:04:58.8]} 1... e5 {[%clk 0:04:53.9]} 2. Nf3 {[%clk 0:04:57.8]}
2... Nc6 {[%clk 0:04:52.6]} 3. Bb5 {[%clk 0:04:56.9]} 3... a6 {[%clk 0:04:49.7]}
4. Bxc6 {[%clk 0:04:56.1]} 4... dxc6 {[%clk 0:04:48.3]} 5. O-O {[%clk
0:04:55.2]} 5... f6 {[%clk 0:04:47.3]} 6. d4 {[%clk 0:04:54.4]} 6... exd4 {[%clk
0:04:46.4]} 7. Nxd4 {[%clk 0:04:53.5]} 7... c5 {[%clk 0:04:45.6]} 8. Nb3 {[%clk
0:04:51.7]} 8... Qxd1 {[%clk 0:04:44.8]} 9. Rxd1 {[%clk 0:04:50.4]} 9... Be6
{[%clk 0:04:41.2]} 10. Na5 {[%clk 0:04:46]} 10... b6 {[%clk 0:04:37.8]} 11. Nb3
{[%clk 0:04:38]} 11... Bd6 {[%clk 0:04:35.3]} 12. Nc3 {[%clk 0:04:34.9]} 12...
Ne7 {[%clk 0:04:34.4]} 13. Be3 {[%clk 0:04:33.3]} 13... O-O-O {[%clk 0:04:33.4]}
14. f4 {[%clk 0:04:26.1]} 14... Rhe8 {[%clk 0:04:16.7]} 15. Rd2 {[%clk
0:04:18.1]} 15... Nc6 {[%clk 0:04:15.4]} 16. Rad1 {[%clk 0:04:15.9]} 16... Bf7
{[%clk 0:04:07]} 17. Kf2 {[%clk 0:04:07.6]} 17... Kb7 {[%clk 0:04:06.2]} 18. Kf3
{[%clk 0:04:05.8]} 18... h6 {[%clk 0:03:59.9]} 19. g4 {[%clk 0:04:04.6]} 19...
g5 {[%clk 0:03:58.5]} 20. h3 {[%clk 0:04:00.7]} 20... gxf4 {[%clk 0:03:56.7]}
21. Bxf4 {[%clk 0:04:00.6]} 21... h5 {[%clk 0:03:44.3]} 22. Nd5 {[%clk
0:03:57.6]} 22... hxg4+ {[%clk 0:03:39.5]} 23. hxg4 {[%clk 0:03:56.2]} 23...
Bxd5 {[%clk 0:03:38.8]} 24. Rxd5 {[%clk 0:03:50.6]} 24... Ne5+ {[%clk
0:03:37.3]} 25. Bxe5 {[%clk 0:03:46.7]} 25... fxe5 {[%clk 0:03:36.8]} 26. c4
{[%clk 0:03:39]} 26... Rf8+ {[%clk 0:03:34.1]} 27. Kg3 {[%clk 0:03:35.8]} 27...
Rf4 {[%clk 0:03:33.3]} 28. R5d3 {[%clk 0:02:50.8]} 28... Rg8 {[%clk 0:03:31.1]}
29. Rf3 {[%clk 0:02:50]} 29... Rgxg4+ {[%clk 0:03:29.8]} 30. Kf2 {[%clk
0:02:49.6]} 30... Rxe4 {[%clk 0:03:23.8]} 31. Nd2 {[%clk 0:02:46.4]} 31... Rd4
{[%clk 0:03:19.1]} 32. b3 {[%clk 0:02:44.7]} 32... e4 {[%clk 0:03:15.4]} 33. Re3
{[%clk 0:02:43.9]} 33... Rh4 {[%clk 0:02:48.1]} 0-1

[Event "Live Chess"]
[Site "Chess.com"]
[Date "2023.05.21"]
[Round "-"]
[White "jimwad"]
[Black "YrrriKharkiv"]
[Result "0-1"]
[WhiteElo "1218"]
[BlackElo "2045"]
[TimeControl "300"]
[EndTime "8:11:34 PDT"]
[Termination "YrrriKharkiv won by resignation"]

1. d4 {[%clk 0:04:57.8]} 1... Nf6 {[%clk 0:04:58.3]} 2. c4 {[%clk 0:04:56.5]}
2... c5 {[%clk 0:04:57.9]} 3. d5 {[%clk 0:04:54.8]} 3... b5 {[%clk 0:04:56.6]}
4. e3 {[%clk 0:04:51.8]} 4... bxc4 {[%clk 0:04:54.4]} 5. Bxc4 {[%clk 0:04:50.5]}
5... g6 {[%clk 0:04:53.3]} 6. Nc3 {[%clk 0:04:47.6]} 6... d6 {[%clk 0:04:52.8]}
7. Nf3 {[%clk 0:04:45.8]} 7... Bg7 {[%clk 0:04:52]} 8. O-O {[%clk 0:04:44]} 8...
Nbd7 {[%clk 0:04:51]} 9. Re1 {[%clk 0:04:38.8]} 9... Rb8 {[%clk 0:04:50.3]} 10.
b3 {[%clk 0:04:37.3]} 10... Ne4 {[%clk 0:04:48.9]} 11. Nxe4 {[%clk 0:04:35.6]}
11... Bxa1 {[%clk 0:04:46.8]} 12. Neg5 {[%clk 0:04:20.9]} 12... Bg7 {[%clk
0:04:41.6]} 13. e4 {[%clk 0:04:18.3]} 13... O-O {[%clk 0:04:39.5]} 14. e5 {[%clk
0:03:36.3]} 14... Nxe5 {[%clk 0:04:32.1]} 15. Nxe5 {[%clk 0:03:35]} 15... Bxe5
{[%clk 0:04:30.3]} 16. Qf3 {[%clk 0:03:19.7]} 16... Qa5 {[%clk 0:04:22.7]} 17.
Rd1 {[%clk 0:03:04.7]} 17... Qc3 {[%clk 0:04:10.3]} 18. Qxc3 {[%clk 0:03:02.2]}
18... Bxc3 {[%clk 0:04:08.7]} 19. Rd3 {[%clk 0:02:54.7]} 19... Bf6 {[%clk
0:04:00.6]} 20. Nf3 {[%clk 0:02:46]} 20... Bf5 {[%clk 0:03:58.7]} 21. Rd1 {[%clk
0:02:43.7]} 21... a5 {[%clk 0:03:54.5]} 22. a4 {[%clk 0:02:40.9]} 22... Bc2
{[%clk 0:03:49]} 23. Re1 {[%clk 0:02:33.2]} 23... Bxb3 {[%clk 0:03:47.6]} 24.
Bxb3 {[%clk 0:02:29.2]} 24... Rxb3 {[%clk 0:03:46.8]} 25. Bd2 {[%clk 0:02:24.8]}
25... Ra3 {[%clk 0:03:38]} 26. Bxa5 {[%clk 0:02:23.2]} 26... Rxa4 {[%clk
0:03:37.5]} 27. Bd2 {[%clk 0:02:17.4]} 27... Rfa8 {[%clk 0:03:33.9]} 28. h3
{[%clk 0:02:14.4]} 28... Ra1 {[%clk 0:03:30.7]} 29. Kf1 {[%clk 0:02:12.3]} 29...
Rxe1+ {[%clk 0:03:28.8]} 30. Kxe1 {[%clk 0:02:10.1]} 30... c4 {[%clk 0:03:25.2]}
31. Ke2 {[%clk 0:02:04.9]} 31... c3 {[%clk 0:03:22.2]} 32. Bc1 {[%clk
0:02:03.3]} 32... Ra2+ {[%clk 0:03:20.8]} 33. Kd3 {[%clk 0:02:01.6]} 33... Rxf2
{[%clk 0:03:19]} 34. Nd4 {[%clk 0:01:52.9]} 34... Rxg2 {[%clk 0:03:13.7]} 35.
Kxc3 {[%clk 0:01:50.4]} 35... Rg3+ {[%clk 0:03:08.2]} 36. Kc4 {[%clk 0:01:44.8]}
36... Bxd4 {[%clk 0:03:04.5]} 37. Kxd4 {[%clk 0:01:43.4]} 37... Rxh3 {[%clk
0:03:04.2]} 38. Bg5 {[%clk 0:01:39.7]} 38... f6 {[%clk 0:03:02.8]} 39. Bc1
{[%clk 0:01:37.3]} 39... Rh4+ {[%clk 0:03:00.4]} 40. Kd3 {[%clk 0:01:34.7]}
40... Kf7 {[%clk 0:02:59.9]} 41. Bb2 {[%clk 0:01:30]} 41... Rh3+ {[%clk
0:02:56.3]} 42. Kc4 {[%clk 0:01:28.2]} 42... h5 {[%clk 0:02:53.8]} 0-1

[Event "Live Chess"]
[Site "Chess.com"]
[Date "2023.05.21"]
[Round "-"]
[White "RichardABates"]
[Black "TheSmoulderingMaster"]
[Result "1-0"]
[WhiteElo "2180"]
[BlackElo "1657"]
[TimeControl "300"]
[EndTime "8:11:34 PDT"]
[Termination "RichardABates won by resignation"]

1. d4 {[%clk 0:04:59.2]} 1... Nf6 {[%clk 0:04:57.7]} 2. Nf3 {[%clk 0:04:57.6]}
2... d6 {[%clk 0:04:57.1]} 3. c4 {[%clk 0:04:56.2]} 3... g6 {[%clk 0:04:56.5]}
4. g3 {[%clk 0:04:54.7]} 4... Bg7 {[%clk 0:04:55.8]} 5. Bg2 {[%clk 0:04:53.8]}
5... O-O {[%clk 0:04:55.1]} 6. O-O {[%clk 0:04:52.4]} 6... Nbd7 {[%clk
0:04:50.9]} 7. Nc3 {[%clk 0:04:50.8]} 7... Re8 {[%clk 0:04:50.1]} 8. e4 {[%clk
0:04:48.9]} 8... e5 {[%clk 0:04:48.7]} 9. Rb1 {[%clk 0:04:46.6]} 9... exd4
{[%clk 0:04:43.4]} 10. Nxd4 {[%clk 0:04:45.2]} 10... Nc5 {[%clk 0:04:41.8]} 11.
f3 {[%clk 0:04:36]} 11... Nfd7 {[%clk 0:04:35.6]} 12. Be3 {[%clk 0:04:30.4]}
12... Ne5 {[%clk 0:04:32.7]} 13. b3 {[%clk 0:04:27.2]} 13... Ne6 {[%clk
0:04:24.9]} 14. Kh1 {[%clk 0:04:19.9]} 14... Nxd4 {[%clk 0:04:21.2]} 15. Bxd4
{[%clk 0:04:18.2]} 15... Be6 {[%clk 0:04:17.6]} 16. Nd5 {[%clk 0:04:13.6]} 16...
Bxd5 {[%clk 0:04:15.7]} 17. cxd5 {[%clk 0:04:11.5]} 17... Qd7 {[%clk 0:04:01.1]}
18. f4 {[%clk 0:04:08.1]} 18... Ng4 {[%clk 0:03:55.1]} 19. Bxg7 {[%clk
0:04:06.1]} 19... Ne3 {[%clk 0:03:48.2]} 20. Qd4 {[%clk 0:04:04.5]} 20... Nxf1
{[%clk 0:03:44.1]} 21. Rxf1 {[%clk 0:04:02.6]} 21... Re7 {[%clk 0:03:35.7]} 22.
Qf6 {[%clk 0:03:54.9]} 22... Rae8 {[%clk 0:03:30.2]} 23. Bh6 {[%clk 0:03:49.8]}
1-0

[Event "Live Chess"]
[Site "Chess.com"]
[Date "2023.05.21"]
[Round "-"]
[White "GEMdzq"]
[Black "martinsmartin63"]
[Result "1-0"]
[WhiteElo "2225"]
[BlackElo "751"]
[TimeControl "300"]
[EndTime "8:11:38 PDT"]
[Termination "GEMdzq won by resignation"]

1. e4 {[%clk 0:04:58.4]} 1... e5 {[%clk 0:04:57.2]} 2. d4 {[%clk 0:04:57.8]}
2... Nf6 {[%clk 0:04:50]} 3. dxe5 {[%clk 0:04:54.3]} 3... Nxe4 {[%clk
0:04:46.6]} 4. Bc4 {[%clk 0:04:53.3]} 4... d5 {[%clk 0:04:41.8]} 5. Bxd5 {[%clk
0:04:49.7]} 5... Bf5 {[%clk 0:04:37.1]} 6. Bxb7 {[%clk 0:04:09.5]} 6... Nxf2
{[%clk 0:04:30.6]} 7. Qxd8+ {[%clk 0:04:06.5]} 7... Kxd8 {[%clk 0:04:26.4]} 8.
Kxf2 {[%clk 0:04:06.4]} 8... Bxc2 {[%clk 0:04:23.1]} 9. Bxa8 {[%clk 0:04:04.4]}
9... Bxb1 {[%clk 0:04:20.5]} 10. Rxb1 {[%clk 0:04:02.5]} 10... Bc5+ {[%clk
0:04:17]} 11. Be3 {[%clk 0:04:01.6]} 11... Bxe3+ {[%clk 0:04:13.5]} 12. Kxe3
{[%clk 0:04:01.5]} 12... Kd7 {[%clk 0:04:08.2]} 13. Nf3 {[%clk 0:04:01.4]} 1-0

[Event "Live Chess"]
[Site "Chess.com"]
[Date "2023.05.21"]
[Round "-"]
[White "MartinWalker4"]
[Black "Ian-Morley"]
[Result "1-0"]
[WhiteElo "2080"]
[BlackElo "1112"]
[TimeControl "300"]
[EndTime "8:11:42 PDT"]
[Termination "MartinWalker4 won by checkmate"]

1. e4 {[%clk 0:04:56.5]} 1... e5 {[%clk 0:04:58.5]} 2. Nf3 {[%clk 0:04:54.7]}
2... Nc6 {[%clk 0:04:57.4]} 3. Bb5 {[%clk 0:04:53.5]} 3... a6 {[%clk 0:04:56.2]}
4. Ba4 {[%clk 0:04:52.1]} 4... Nf6 {[%clk 0:04:53.1]} 5. O-O {[%clk 0:04:50.6]}
5... Nd4 {[%clk 0:04:52.3]} 6. Nxd4 {[%clk 0:04:47.7]} 6... exd4 {[%clk
0:04:51.5]} 7. e5 {[%clk 0:04:45.9]} 7... Nd5 {[%clk 0:04:48.6]} 8. Bb3 {[%clk
0:04:44.1]} 8... c6 {[%clk 0:04:47.1]} 9. Qf3 {[%clk 0:04:36.1]} 9... Qe7 {[%clk
0:04:42.7]} 10. Bxd5 {[%clk 0:04:33.2]} 10... cxd5 {[%clk 0:04:41.7]} 11. Qxd5
{[%clk 0:04:32.1]} 11... d6 {[%clk 0:04:38.5]} 12. exd6 {[%clk 0:04:26]} 12...
Qxd6 {[%clk 0:04:35.9]} 13. Qxd6 {[%clk 0:04:20.4]} 13... Bxd6 {[%clk
0:04:34.8]} 14. d3 {[%clk 0:04:19.4]} 14... O-O {[%clk 0:04:33.2]} 15. Nd2
{[%clk 0:04:18.1]} 15... Re8 {[%clk 0:04:31.9]} 16. Ne4 {[%clk 0:04:16.4]} 16...
Be5 {[%clk 0:04:28.2]} 17. Re1 {[%clk 0:04:12.7]} 17... b5 {[%clk 0:04:27.2]}
18. f4 {[%clk 0:04:00.2]} 18... Bc7 {[%clk 0:04:23.1]} 19. Nf6+ {[%clk
0:03:58.5]} 19... Kf8 {[%clk 0:04:21.2]} 20. Rxe8# {[%clk 0:03:56.2]} 1-0